Cogmind - Beta 13 @@@ ROGUE MODE // 2024.04.19 @ 02:58:30 Player: Body_Elektric Result: Destroyed by S-10 Pest with Light Assault Rifle Performance ------------- Evolutions (2) 1000 Regions Visited (5) 1000 Robots Destroyed (51) 255 Value Destroyed (1061) 1061 Prototype IDs (28) 560 Alien Tech Used (0) 0 Bonus (300) 300 TOTAL SCORE: 4176 Bonus ------- Aligned with FarCom 300 Cogmind --------- Core Integrity 0/550 Matter 55/300 Energy 100/100 System Corruption 7% Temperature Cool (0) Movement Core (700) Ox13 Location -8/Materials Parts ------- > --- POWER (1) -------- (None) > --- PROPULSION (4) --- (None) > --- UTILITY (4) ------ High-capacity Storage Unit > --- WEAPON (2) ------- (None) > --- INVENTORY (20) --- Improved Ion Engine Improved Ion Engine Light Treads Light Treads Light Treads Wheel Improved Flight Unit Improved Flight Unit Small Matter Pod (50) Seismic Detector Light Assault Rifle Mining Laser Peak State ------------ > --- POWER ------------ Improved Ion Engine > --- PROPULSION ------- Light Treads Light Treads Light Treads Light Treads > --- UTILITY ---------- High-capacity Storage Unit Light Armor Plating Hacking Suite Trap Reconfigurator > --- WEAPON ----------- Light Cannon Rocket Launcher > --- INVENTORY -------- Improved Ion Engine Improved Ion Engine Light Treads Light Treads Wheel Improved Flight Unit Improved Flight Unit Improved Flight Unit Cesium-ion Thruster Small Matter Pod High-capacity Matter Pod Seismic Detector Light Assault Rifle Grenade Launcher Mining Laser [Rating: 25] Favorites ----------- Power Improved Ion Engine Engine Improved Ion Engine Propulsion Light Treads Treads Light Treads Wheel Wheel Hover Unit Airjet Flight Unit Improved Flight Unit Utility Seismic Detector Device Seismic Detector Storage High-capacity Storage Unit Hackware Hacking Suite Protection Light Armor Plating Weapon Light Assault Rifle Energy Gun Small Laser Ballistic Gun Light Assault Rifle Ballistic Cannon Light Cannon Launcher Grenade Launcher Special Weapon Mining Laser Build | -11 -10 -10 -10 -9 -8 ------- Run | Yrd Mat Min Exi Min Mat Slots Evolved 4 | . . . . . 4 Power . | . . . . . . Propulsion 2 | . . . . . 2 Utility 2 | . . . . . 2 Weapon . | . . . . . . Parts Attached 47 | 8 9 4 . 4 22 Power 4 | 1 3 . . . . Engine 4 | 1 3 . . . . Core . | . . . . . . Reactor . | . . . . . . Propulsion 17 | 2 3 1 . . 11 Treads 12 | 2 2 . . . 8 Leg . | . . . . . . Wheel 2 | . 1 1 . . . Hover 1 | . . . . . 1 Flight 2 | . . . . . 2 Utility 7 | 2 2 . . . 3 Device 2 | 1 . . . . 1 Storage 3 | 1 2 . . . . Processor . | . . . . . . Hackware 1 | . . . . . 1 Protection 1 | . . . . . 1 Artifact . | . . . . . . Weapon 19 | 3 1 3 . 4 8 Energy Gun 1 | 1 . . . . . Energy Cannon . | . . . . . . Ballistic Gun 4 | 2 . . . 1 1 Ballistic Cannon 7 | . 1 1 . 2 3 Launcher 6 | . . 2 . 1 3 Special Weapon 1 | . . . . . 1 Impact Weapon . | . . . . . . Slashing Weapon . | . . . . . . Piercing Weapon . | . . . . . . Special Melee Weapon . | . . . . . . Unidentified Prototypes 1 | . . . . . 1 Parts Lost 14 | . . . . . 14 Power 1 | . . . . . 1 Propulsion 6 | . . . . . 6 Utility 4 | . . . . . 4 Weapon 3 | . . . . . 3 Highest Loss Streak 9 | . . . . . 9 To Critical Strikes . | . . . . . . Average Slot Usage (%) 93 | . 100 100 71 100 83 Engine 12 | . 14 14 14 14 8 Treads 17 | . 18 4 . . 24 Wheel 12 | . 9 23 28 28 8 Device 12 | . 14 14 14 14 9 Storage 12 | . 14 14 14 14 9 Hackware 1 | . . . . . 4 Ballistic Gun 13 | . 19 14 . 14 4 Ballistic Cannon 8 | . 8 10 . 14 9 Naked Turns . | . . . . . . Heaviest Build 90 | 13 90 52 48 52 58 Greatest Support 80 | 40 40 20 20 20 80 Greatest Overweight (x) 10 | . 8 5 2 2 10 Average Overweight (x) 3 | . 4 2 2 2 1 Largest Inventory Capacity 25 | 8 25 20 20 20 20 Average Capacity 18 | 6 17 20 20 20 20 Most Carried 16 | 2 11 11 14 13 16 Average Carried 9 | 1 6 11 13 12 13 Final Capacity 20 | 8 20 20 20 20 20 Final Carried 14 | 2 11 11 14 12 12 Class Distribution -------------------- 100% | Mutant Dominant Class ---------------- Mutant | -10/Materials Mutant | -10/Mines Mutant | -10/Exiles Mutant | -9/Mines Mutant | -8/Materials Resources | -11 -10 -10 -10 -9 -8 ----------- Run | Yrd Mat Min Exi Min Mat Matter Collected 1324 | 215 597 131 . . 381 Remotely . | . . . . . . Salvage Created 1120 | 22 577 57 . . 464 Parts 79 | 2 31 8 . . 38 Haulers Intercepted 4 | . 2 . . . 2 Recyclers Shooed 4 | . 2 . . . 2 Parts Field Recycled . | . . . . . . Retrieved Matter . | . . . . . . Parts Self-Destructed . | . . . . . . Prevented . | . . . . . . Kills | -11 -10 -10 -10 -9 -8 ------- Run | Yrd Mat Min Exi Min Mat Combat Hostiles Destroyed 29 | . 7 6 . . 16 Guns 7 | . 7 . . . . Cannons 5 | . . . . . 5 AOE 17 | . . 6 . . 11 Classes Destroyed 12 | 1 8 . . . 3 Worker 4 | . 3 . . . 1 Builder 4 | . . . . . 4 Tunneler 2 | 1 1 . . . . Hauler 4 | . 2 . . . 2 Recycler 2 | . 2 . . . . Mechanic 1 | . 1 . . . . Operator 2 | . 1 . . . 1 Watcher 3 | . 2 . . . 1 Swarmer 13 | . 3 6 . . 4 Grunt 12 | . 4 . . . 8 Sentry 3 | . . . . . 3 Hunter 1 | . . . . . 1 Best Kill Streak 7 | 1 3 3 . . 7 Combat Bots Only 5 | . 3 3 . . 5 Max Kills in Single Turn 3 | 1 1 3 . . 3 Gunslinging . | . . . . . . Exploded 3 | . . 3 . . 1 Melee . | . . . . . . Uniques/NPCs Destroyed . | . . . . . . Combat | -11 -10 -10 -10 -9 -8 -------- Run | Yrd Mat Min Exi Min Mat Hostile Shots Fired 300 | . 45 9 . . 246 Missed 86 | . 11 5 . . 70 Damage Taken 2499 | . 430 73 . . 1996 Core 675 | . 108 13 . . 554 Absorbed by Shields . | . . . . . . Regen/Repaired (Parts) 24 | . . . . . 24 Core Remaining (%) 75 | 100 . . . 51 . Volleys Fired 148 | 4 81 6 . . 57 Largest 2 | 2 2 2 . . 2 Hottest 144 | 40 55 55 . . 144 Shots Fired 274 | 8 162 11 . . 93 Gun 185 | 8 149 5 . . 23 Cannon 65 | . 13 3 . . 49 Launcher 22 | . . 3 . . 19 Special 2 | . . . . . 2 Kinetic 250 | 8 162 8 . . 72 Thermal 2 | . . . . . 2 Explosive 22 | . . 3 . . 19 Electromagnetic . | . . . . . . Robot Hit Streak 23 | 3 23 3 . . 13 Robot Miss Streak 10 | 3 5 3 . . 10 Penetration Max . | . . . . . . Secondary Targets . | . . . . . . Shots Hit Robots 179 | 4 109 5 . . 61 Core Hits 105 | 1 44 6 . . 54 Critical Kills . | . . . . . . Critical Parts Destroyed 1 | . 1 . . . . Critical Strikes 2 | . 1 . . . 1 Destroy 1 | . 1 . . . . Blast 1 | . . . . . 1 Melee Attacks . | . . . . . . Impact . | . . . . . . Slashing . | . . . . . . Piercing . | . . . . . . Sneak Attacks . | . . . . . . Combat Hostiles . | . . . . . . Follow-up Attacks . | . . . . . . Damage Inflicted 3442 | 33 1030 292 . . 2087 Guns 966 | 33 829 13 . . 91 Cannons 882 | . 167 15 . . 700 Explosions 1511 | . . 264 . . 1247 Melee . | . . . . . . Ramming 59 | . 34 . . . 25 Kinetic 1848 | 33 996 28 . . 791 Thermal 24 | . . . . . 24 Explosive 1511 | . . 264 . . 1247 Electromagnetic . | . . . . . . Impact . | . . . . . . Slashing . | . . . . . . Piercing . | . . . . . . Highest Corruption 3 | . 3 3 3 3 2 Average Corruption 2 | . 2 3 3 3 2 Corruption Purged . | . . . . . . Corruption Blocked . | . . . . . . Effects 36 | . 15 15 5 1 . Message Errors 8 | . 3 4 . 1 . Matter Fused 9 | . 4 3 2 . . Heat Flow Errors 5 | . 2 2 1 . . Energy Discharges 5 | . 3 1 1 . . Data Loss (minor) 5 | . 2 3 . . . Data Loss (major) 1 | . 1 . . . . Misfires 2 | . . 2 . . . Alerts 1 | . . . 1 . . Overload Shots . | . . . . . . Overflow Damage 17 | . 17 . . . . Projectiles 17 | . 17 . . . . Explosions . | . . . . . . Melee . | . . . . . . Knockbacks 7 | . 3 . . . 4 Impact . | . . . . . . Kinetic 7 | . 3 . . . 4 Secondary . | . . . . . . Self-Inflicted Damage 174 | . 12 38 . . 124 Shots 8 | . . 2 . . 6 Rammed 16 | . 8 . . . 8 Targets Rammed 16 | . 8 . . . 8 Kicked . | . . . . . . Crushed . | . . . . . . Highest Temperature 259 | . 259 202 224 . 109 Average Temperature 37 | . 35 62 119 . 22 Received Heat Transfer 516 | . 201 9 . . 306 Effects 2 | . . 2 . . . Interference 2 | . . 2 . . . Siege Activations . | . . . . . . Robots Corrupted . | . . . . . . Combat Hostiles . | . . . . . . Parts Fried . | . . . . . . Impact Corruptions . | . . . . . . Robots Melted . | . . . . . . Combat Hostiles . | . . . . . . Parts Melted . | . . . . . . Heat Transferred 50 | . . . . . 50 Parts Sabotaged . | . . . . . . Parts Stolen . | . . . . . . Parts Stripped . | . . . . . . Power Chain Reactions . | . . . . . . Alert | -11 -10 -10 -10 -9 -8 ------- Run | Yrd Mat Min Exi Min Mat Peak Influence 461 | 5 188 225 . . 461 Initial 5 | . 3 5 . . . Average 69 | 2 37 100 . . 135 Maximum Alert Level 2 | . . 1 . . 2 Low Security (%) 91 | 100 100 92 . 100 72 Level 1 5 | . . 7 . . 16 Level 2 3 | . . . . . 11 Level 3 . | . . . . . . Level 4 . | . . . . . . Level 5 . | . . . . . . High Security . | . . . . . . Max Security . | . . . . . . Squads Dispatched 5 | . 1 . . . 4 Investigation 1 | . . . . . 1 Extermination . | . . . . . . Reinforcement 4 | . 1 . . . 3 Assault . | . . . . . . Garrison . | . . . . . . Intercept . | . . . . . . Searches Triggered . | . . . . . . Construction Impeded . | . . . . . . Haulers Reinforced . | . . . . . . Active Scanning Responses . | . . . . . . Cargo Convoy Interrupts . | . . . . . . Stealth | -11 -10 -10 -10 -9 -8 --------- Run | Yrd Mat Min Exi Min Mat Distress Signals 6 | . 2 1 . . 3 Communications Jammed . | . . . . . . Distress Signals . | . . . . . . Times Spotted 65 | . 26 7 . . 32 Peak Tracking Total 5 | . 4 3 . . 5 Tactical Retreats 4 | . 2 1 . . 1 Traps | -11 -10 -10 -10 -9 -8 ------- Run | Yrd Mat Min Exi Min Mat Traps Triggered 3 | . 3 . . . . Indirectly . | . . . . . . Trap Hack Attempts . | . . . . . . Triggered . | . . . . . . Disarmed . | . . . . . . Reprogrammed . | . . . . . . Reused 1 | . . . . . 1 Traps Reconfigurated 8 | . . . . . 8 Traps Extracted . | . . . . . . Installed . | . . . . . . Triggered 1 | . . . . . 1 Machines | -11 -10 -10 -10 -9 -8 ---------- Run | Yrd Mat Min Exi Min Mat Machines Disabled 4 | . . 1 . . 3 Max in Single Turn 1 | . . 1 . . 1 Machines Repaired . | . . . . . . Machines Dismantled . | . . . . . . Machines Sabotaged . | . . . . . . Overloaded Fab Kills . | . . . . . . Hacking | -11 -10 -10 -10 -9 -8 --------- Run | Yrd Mat Min Exi Min Mat Machines Accessed 14 | . 7 . 2 . 5 Terminals 10 | . 6 . . . 4 Fabricators . | . . . . . . Repair Stations 1 | . . . . . 1 Recycling Units 1 | . 1 . . . . Scanalyzers . | . . . . . . Garrison Access . | . . . . . . Total Hacks 43 | . 22 . 2 . 19 Successful 22 | . 10 . 2 . 10 Failed 19 | . 10 . . . 9 Catastrophic 2 | . 1 . . . 1 Database Lockouts 2 | . 2 . . . . Manual 24 | . 12 . 1 . 11 Terminals 37 | . 21 . . . 16 Fabricators . | . . . . . . Repair Stations 3 | . . . . . 3 Recycling Units 1 | . 1 . . . . Scanalyzers . | . . . . . . Garrison Access . | . . . . . . Terminal Hacks 15 | . 8 . 2 . 5 Record 2 | . 1 . 1 . . Robot Analysis 3 | . 2 . . . 1 Prototype ID Bank 2 | . 1 . . . 1 Terminal Index 1 | . . . . . 1 Locate Traps 4 | . 3 . . . 1 Recall Reinforcements 1 | . 1 . . . . Hauler Manifests 1 | . . . . . 1 Derelict Proto ID Bank 1 | . . . 1 . . Fabricator Hacks . | . . . . . . Repair Station Hacks 2 | . . . . . 2 Scan Component 1 | . . . . . 1 Repair 1 | . . . . . 1 Recycling Unit Hacks 1 | . 1 . . . . Report Inventory 1 | . 1 . . . . Scanalyzer . | . . . . . . Garrison Access Hacks . | . . . . . . Unauthorized Hacks 4 | . 1 . . . 3 Terminals 4 | . 1 . . . 3 Assimilate 1 | . . . . . 1 Botnet 3 | . 1 . . . 2 Fabricators . | . . . . . . Repair Stations . | . . . . . . Recycling Units . | . . . . . . Scanalyzers . | . . . . . . Garrison Access . | . . . . . . Data Cores Recovered . | . . . . . . Used . | . . . . . . Hacking Detections 10 | . 5 . . . 5 Full Trace Events 2 | . 1 . . . 1 Feedback Events . | . . . . . . Feedback Blocked . | . . . . . . Robot Schematics Acquired . | . . . . . . Robots Built . | . . . . . . Authchips . | . . . . . . Time . | . . . . . . Total Robot Build Rating . | . . . . . . Part Schematics Acquired . | . . . . . . Parts Built . | . . . . . . Authchips . | . . . . . . Time . | . . . . . . Total Part Build Rating . | . . . . . . Parts Repaired 1 | . . . . . 1 Time 26 | . . . . . 26 Parts Recycled . | . . . . . . Recycled Matter . | . . . . . . Retrieved Matter . | . . . . . . Retrieved Components . | . . . . . . Parts Scanalyzed . | . . . . . . Part Schematics Acquired . | . . . . . . Parts Damaged . | . . . . . . Bothacking | -11 -10 -10 -10 -9 -8 ------------ Run | Yrd Mat Min Exi Min Mat Used RIF Installer . | . . . . . . Robots Hacked . | . . . . . . Non-combat . | . . . . . . Combat . | . . . . . . Robot Hacks Applied . | . . . . . . Relay Couplers Released . | . . . . . . Fabnet Peak Effective % . | . . . . . . Robots Rewired . | . . . . . . Allies Hacked . | . . . . . . Hacks Repelled . | . . . . . . Allies | -11 -10 -10 -10 -9 -8 -------- Run | Yrd Mat Min Exi Min Mat Total Allies . | . . . . . . Largest Group . | . . . . . . Highest-Rated Group . | . . . . . . Highest-Rated Ally . | . . . . . . Total Orders . | . . . . . . Ally Attacks . | . . . . . . Total Damage . | . . . . . . Kills . | . . . . . . Allies Corrupted . | . . . . . . Allies Melted . | . . . . . . Intel | -11 -10 -10 -10 -9 -8 ------- Run | Yrd Mat Min Exi Min Mat Robot Analysis Total 3 | . 2 . . . 1 Derelict Logs Recovered 1 | . . 1 . . . Drone Launches . | . . . . . . Drone Recoveries . | . . . . . . Exploration | -11 -10 -10 -10 -9 -8 ------------- Run | Yrd Mat Min Exi Min Mat Turns Passed 4935 | 153 2674 469 308 52 1279 Spaces Moved 2829 | 87 1423 363 279 43 634 Core 10 | 10 . . . . . Treads 722 | 77 339 . . . 306 Legs . | . . . . . . Wheels 2088 | . 1084 363 279 43 319 Hover . | . . . . . . Flight 9 | . . . . . 9 Fastest Speed 50 | 50 140 110 110 110 110 Average Speed 148 | 147 166 122 110 110 145 Slowest Speed 800 | 160 320 155 110 110 800 Overloaded Moves . | . . . . . . Propulsion Burnouts . | . . . . . . Robots Hopped . | . . . . . . Cave-ins Triggered . | . . . . . . Exploration Rate (%) 42 | 4 91 47 61 8 42 Regions Visited 5 Branch Regions 3 Pre-discovered Areas 1 | . . . 1 . . Known Exits Taken . | . . . . . . Unknown Exits Taken 5 | 1 1 1 1 1 . Scrap Searched . | . . . . . . Spaces Dug 1 | . . . . . 1 Terrain Destroyed 105 | . . 20 . . 85 Melee . | . . . . . . Projectile 1 | . . . . . 1 AOE 104 | . . 20 . . 84 Terrain Rammed 2 | . . . . . 2 Walls Destroyed . | . . . . . . Machines Disabled . | . . . . . . Actions | -11 -10 -10 -10 -9 -8 --------- Run | Yrd Mat Min Exi Min Mat Total 3260 | 103 1593 377 281 46 860 Wait 176 | . 49 5 . . 122 Move 2824 | 86 1422 362 278 42 634 Hop . | . . . . . . Pick Up 25 | 3 14 . 1 . 7 Fast Attach 18 | 8 2 . . . 8 Attach 8 | . . . . 2 6 Detach 2 | . . . 2 . . Swap 21 | . 7 4 . 2 8 Drop 20 | 2 10 . . . 8 Fire 148 | 4 81 6 . . 57 Melee . | . . . . . . Ram 9 | . 2 . . . 7 Kick . | . . . . . . Crush 9 | . 6 . . . 3 Escape Stasis . | . . . . . . Rewire . | . . . . . . Trap . | . . . . . . Miscellaneous . | . . . . . . Route ------- -11/Scrapyard -10/Materials (discovered 5 exits: [*Mat x3] / [*Min x2]) -10/Mines -10/Exiles -9/Mines -8/Materials (discovered 1 exit: [*Fac]) History --------- Turn | Location | Event 17 | -11/Scrapyard | Discovered new exit (range 15) 154 | -11/Scrapyard | Entered Materials 307 | -10/Materials | Build established: Mutant 1193 | -10/Materials | Discovered new exit (range 10) 1532 | -10/Materials | Discovered new exit (range 9) 2062 | -10/Materials | Discovered new exit (range 12) 2252 | -10/Materials | Discovered new exit (range 16) 2423 | -10/Materials | Central database locked down 2438 | -10/Materials | Central database locked down 2463 | -10/Materials | Discovered new exit (range 6) 2828 | -10/Materials | Entered Mines 3048 | -10/Mines | Learned Materials stockpile data 3078 | -10/Mines | Assembled infested the area 3287 | -10/Mines | Deemed a non-threat by the Exiles lab entrance 3288 | -10/Mines | Discovered new exit (range 5) 3297 | -10/Mines | Entered Exiles 3335 | -10/Exiles | Met 8R-AWN 3353 | -10/Exiles | Met EX-HEX 3388 | -10/Exiles | Met EX-BIN 3406 | -10/Exiles | Aligned with FarCom system 3407 | -10/Exiles | Given EX-Vault access code 3449 | -10/Exiles | Opened EX-Vault 3461 | -10/Exiles | Found Trap Reconfigurator 3497 | -10/Exiles | Warned to stay clear of 0b10 Research branches 3536 | -10/Exiles | Met EX-DEC 3554 | -10/Exiles | Learned location of Zion (-7) 3592 | -10/Exiles | Discovered new exit (range 12) 3605 | -10/Exiles | Left Exiles lab with Trap Reconfigurator 3605 | -10/Exiles | Entered Mines 3610 | -9/Mines | Discovered new exit (range 7) 3657 | -9/Mines | Entered Materials 3657 | -8/Materials | Evolved 4 slots: Propulsion x2, Utility x2 4176 | -8/Materials | Repaired Mining Laser 4713 | -8/Materials | Discovered new exit (range 15) 4901 | -8/Materials | Core integrity fell below 50% 4930 | -8/Materials | Core integrity fell below 20% 4936 | -8/Materials | Destroyed by S-10 Pest with Light Assault Rifle Last Messages --------------- reinforcements to Terminal M002. 04863_ Lgt. Cannon destroyed. 04866_ S-10 Pest destroyed. 04866_ R-06 Scavenger collects Flight Unit. 04870_ K-01 Serf collects debris. 04872_ R-06 Scavenger collects Lgt. Ion Engine. 04873_ Lgt. Treads destroyed. 04882_ Imp. Ion Engine destroyed. 04888_ Hacking Suite destroyed. 04905_ Slammed into S-10 Pest. 04907_ Imp. Flight Unit destroyed. 04909_ Trap Reconfigurator destroyed. 04912_ Slammed into S-10 Pest. 04930_ Slammed into Wall. 04930_ Destabilizing: System corrupted (+1). 04936_ Slammed into Wall. 04936_ Cesium-ion Thruster destroyed. 04936_ System corrupted by crushing effect (+5). 04936_ Destabilizing: Core damaged (-27). 04936_ Destabilizing: Core damaged (-22). Map ----- +----------------------------------------------------+ | ????????????????????????? ????????????? | | ????????????????????????? = ????????????? | | ????????????????????????# ????????????? | | ????????????????????????# "????????????? | | ????????????????????????+ ????????????? | | ????????????????????????# ! ????????????? | | ????????????????????????# ????????????? | | ????????]???????????????# #????????????? | | ????????????????????????# #????????????? | | ????????????????????????# ###+#######??? | | ????????????????????????# # #??? | | ????????????????????????# # """ """ #??? | | ???????????????########## # """ """ #??? | | ??????????????? # # """ """ #??? | | ?????????????????"" """ # + #??? | | ?????????????????"" """ + # ![ * #??? | | ?????????????????"" """ # %# ! #??? | | ?????????????????"" """ # s# #??? | | ?????????????????"" """ #s ###########??? | | ????????????????? # #????????????? | | ????????????????? # #????????????? | | ???????#############+#### #????????????? | | ???????# = #?# ???# #????????????? | | ???????# ######## #????????????? | | ???????# """ # # s#????????????? | | ???????# """ + #@ #????????????? | | ###?##?# """ "" # # #????????????? | | # ## ### T" # # #????????????? | | # ### " # # #????????????? | | ## # # #????????????? | | # ############+######+## #######??????? | | #??????? | | = % < #??????? | | * #??????? | | #+#### =#######+##################??????? | | * | = # #??? ??????????????????????? | | = ##?# ? ?????????????????????? | | % % ??? ????????????????????? | | =" #####?? #???????????????????? | | % % ##????? #???????????????????? | | #?????? #???????????????????? | | ###+###?????? #???????????????????? | | ??# ????????? #???????????????????? | | ??# ???????? #???????????????????? | | ??# ????????#########???????????????????? | | ??#?????????????????????????????????????? | | ????????????????????????????????????????? | | ????????????????????????????????????????? | | ????????????????????????????????????????? | | ????????????????????????????????????????? | +----------------------------------------------------+ Best States ------------- Heat Dissipation 31 Energy Generation 12 Energy Capacity 265 Matter Stores 300 Matter Capacity 300 Sight Range 16 Terrain Scan Density 10 Armor Coverage 150 Evasion (%) 40 Recoil Reduction 4 Offensive Hacking 10 Item Schematics ----------------- None Robot Schematics ------------------ None Fabricated ------------ Nothing Alien Tech Used ----------------- None Achievements -------------- None Challenges ------------ None Game ------ Seed ServoPoweredRay Manual? 0 Play Time 00:44:50 Cumulative 36.4 hours Start 2024.04.19 @ 01:23:15 End 2024.04.19 @ 02:58:30 Sessions 1 Manual Loads 0 Difficulty Rogue Special Mode None Game No. 19 Rogue 19 Adventurer 0 Explorer 0 Win Type - Total 0 Types 0/0/0/0/0/0/0/0/0 Lore% 27 Gallery% 28 Achievement% 25 Wizard Run 0 Options --------- Layout 1 ASCII 0 Keyboard 0 Movement Arrows Keybinds 0 Fullscreen 1 Font 16/SmallcapsGlow Map View 55x38 Zoom Use 0% Tactical HUD 1 Map Filters NONE Filters NONE Steam 0 RUN: d0324494-e777-4136-bf2f-ecc84571ae6a